bitfinex/quotes_SOLUSD_20260308
["timestamp","ask_amount","ask_price","bid_price","bid_amount"]
[1772999300629,12.44309285,82.646,82.611,0.46334909]
[1772999301419,0.34329371,82.646,82.611,0.46334909]
[1772999301926,0.34329371,82.644,82.611,0.46334909]
[1772999302225,0.34329371,82.644,82.575,1.21102028]
[1772999302226,0.34329371,82.639,82.577,0.46334909]
[1772999302414,0.34329371,82.639,82.583,0.46334909]
[1772999302612,0.34329371,82.637,82.585,0.46334909]
[1772999302930,0.34329371,82.636,82.585,0.46334909]
[1772999303717,0.34329371,82.629,82.585,0.46334909]
[1772999304032,0.28432314,82.619,82.565,12.57501868]
[1772999304254,3.69383402,82.634,82.565,12.57501868]
[1772999304255,0.34329371,82.618,82.566,0.46334909]
[1772999304735,0.34329371,82.609,82.566,0.46334909]
[1772999304931,0.34329371,82.609,82.568,0.46334909]
[1772999305128,0.34329371,82.609,82.567,12.11137621]
[1772999305625,0.34329371,82.609,82.563,0.46334909]
[1772999306021,0.48545528,82.609,82.563,0.46334909]
[1772999306224,0.34329371,82.598,82.544,0.46334909]
[1772999306840,0.34329371,82.595,82.546,0.46334909]
[1772999307847,0.34329371,82.593,82.548,0.46334909]
[1772999311124,0.34329371,82.591,82.55,0.46334909]
[1772999313120,0.34329371,82.589,82.552,0.47525944]
[1772999314542,0.34329371,82.589,82.551,12.11372363]
[1772999314543,0.34329371,82.607,82.555,0.47525944]
[1772999314844,12.10082406,82.639,82.558,0.47525944]
[1772999314845,0.34329371,82.629,82.558,0.47525944]
[1772999315131,0.34329371,82.627,82.563,0.47525944]
[1772999315332,0.34329371,82.627,82.564,0.47525944]
[1772999315534,0.28432314,82.627,82.564,0.47525944]
[1772999315741,0.34329371,82.626,82.564,0.47525944]
[1772999320742,0.34329371,82.624,82.566,0.47525944]
[1772999321819,0.34329371,82.623,82.566,0.47525944]
[1772999322025,0.34329371,82.618,82.566,0.47525944]
[1772999323935,0.34329371,82.615,82.568,0.47525944]
[1772999326051,0.34329371,82.613,82.569,12.11108285]
[1772999326428,0.34329371,82.613,82.57,0.47525944]
[1772999328348,42.36672637,82.612,82.571,12.1107895]
[1772999328547,0.34329371,82.611,82.572,0.47525944]
[1772999329754,0.34329371,82.609,82.574,0.47525944]
[1772999330955,0.34329371,82.608,82.568,0.47525944]
[1772999331165,0.34329371,82.608,82.563,12.11194534]
[1772999331352,0.34329371,82.608,82.526,1.21173933]
[1772999331353,0.34329371,82.598,82.548,0.47525944]
[1772999332155,0.34329371,82.595,82.549,0.47525944]
[1772999332353,0.34329371,82.578,82.487,4.82477569]
[1772999332531,0.34329371,82.578,82.492,0.47525944]
[1772999332848,0.34329371,82.578,82.494,0.47525944]
[1772999333351,0.34329371,82.568,82.494,0.47525944]
[1772999333548,0.34329371,82.568,82.495,0.47525944]
[1772999334047,0.34329371,82.565,82.501,0.47525944]
[1772999335044,0.28432314,82.566,82.501,0.47525944]
[1772999335045,0.34329371,82.559,82.501,0.47525944]
[1772999336027,0.34329371,82.556,82.503,0.47525944]
[1772999337956,0.34329371,82.556,82.504,0.47525944]
[1772999338161,0.34329371,82.572,82.51,0.47525944]
[1772999338453,0.34329371,82.582,82.51,0.47525944]
[1772999338648,0.34329371,82.582,82.513,0.47525944]
[1772999340454,0.34329371,82.58,82.518,0.47525944]
[1772999340643,0.34329371,82.58,82.519,0.47525944]
[1772999342538,12.10961624,82.579,82.524,0.47525944]
[1772999342740,12.10961624,82.579,82.525,0.47525944]
[1772999343067,0.34329371,82.598,82.525,0.47525944]
[1772999345544,0.34329371,82.595,82.53,0.47735062]
[1772999345736,0.34329371,82.595,82.531,0.47735062]
[1772999348169,0.34329371,82.593,82.534,0.47735062]
[1772999348370,0.48545528,82.593,82.534,0.47735062]
[1772999348538,0.34329371,82.588,82.534,0.47735062]
[1772999348846,0.34329371,82.578,82.532,12.11651238]
[1772999350257,0.34329371,82.575,82.529,0.47735062]
[1772999353038,12.1103495,82.574,82.529,0.47735062]
[1772999353243,0.34329371,82.573,82.531,0.47735062]
[1772999355360,0.34329371,82.569,82.525,12.59475883]
[1772999355658,0.34329371,82.568,82.525,12.59475883]
[1772999355851,0.34329371,82.568,82.526,0.47735062]
[1772999357179,0.34329371,82.559,82.516,12.11873077]
[1772999357356,0.34329371,82.559,82.496,64.58679866]
[1772999357357,0.34329371,82.548,82.502,0.47735062]
[1772999358770,42.39495135,82.557,82.48,73.0160804]
[1772999358771,0.34329371,82.545,82.504,0.47735062]
[1772999360560,0.34329371,82.543,82.505,12.12047754]
[1772999360963,0.34329371,82.543,82.501,0.47735062]
[1772999363576,0.34329371,82.541,82.503,0.47735062]
[1772999365382,12.4575467,82.548,82.503,0.47735062]
[1772999365575,0.34329371,82.547,82.503,0.47735062]
[1772999365772,0.34329371,82.545,82.505,0.47735062]
[1772999368167,12.11475092,82.544,82.507,0.47735062]
[1772999368770,12.45804463,82.544,82.507,0.47735062]
[1772999369277,0.34329371,82.543,82.509,0.47735062]
[1772999371167,0.34329371,82.552,82.511,0.47735062]
[1772999372668,12.11372363,82.551,82.512,12.11944929]
[1772999372870,12.11372363,82.551,82.513,0.45148879]
[1772999373973,0.34329371,82.55,82.513,0.45148879]
[1772999374780,0.34329371,82.548,82.515,0.45148879]
[1772999374980,0.28432314,82.548,82.515,0.45148879]
[1772999375279,0.34329371,82.538,82.494,0.45148879]
[1772999375785,0.34329371,82.538,82.493,12.12224067]
[1772999376091,0.34329371,82.538,82.493,12.57372946]
[1772999376796,0.62761685,82.536,82.493,12.57372946]
[1772999376994,0.34329371,82.535,82.493,12.57372946]
[1772999377790,0.34329371,82.529,82.493,12.57372946]
[1772999378684,0.34329371,82.528,82.486,0.45148879]
[1772999378993,0.34329371,82.528,82.456,0.28432314]
[1772999378994,0.34329371,82.508,82.467,0.45148879]
[1772999380475,0.34329371,82.498,82.461,0.45148879]
[1772999380885,0.28432314,82.499,82.461,0.45148879]
[1772999380886,0.34329371,82.495,82.461,12.12694485]
[1772999381280,12.1216529,82.497,82.461,0.45148879]
[1772999382377,0.34329371,82.5,82.463,0.45148879]
[1772999382993,3.49,83.74,82.463,0.45148879]
[1772999382994,0.34329371,82.514,82.463,0.45148879]
[1772999383293,0.34329371,82.514,82.464,0.45148879]
[1772999385890,0.34329371,82.512,82.466,0.45148879]
[1772999387990,0.34329371,82.51,82.468,0.45148879]
[1772999388792,0.34329371,82.509,82.468,0.45148879]
[1772999390098,0.34329371,82.506,82.468,0.45148879]
[1772999390300,0.34329371,82.506,82.47,0.45148879]
[1772999392182,0.34329371,82.504,82.472,0.45148879]
[1772999392993,12.12047754,82.505,82.472,0.45148879]
[1772999393194,12.11991466,82.509,82.472,0.45148879]
[1772999394088,0.34329371,82.508,82.474,0.45148879]
[1772999395589,12.12018374,82.507,82.476,0.45148879]
[1772999395786,12.46347745,82.507,82.476,0.45148879]
[1772999398008,12.46347745,82.507,82.471,30.31368602]
[1772999398009,12.46347745,82.507,82.478,0.45148879]
[1772999398408,12.12018374,82.507,82.478,0.45148879]
[1772999399395,0.34329371,82.513,82.48,0.45148879]
[1772999402992,0.34329371,82.511,82.482,0.46102345]
[1772999408614,0.34329371,82.509,82.482,0.46102345]
[1772999411315,0.34329371,82.507,82.482,0.46102345]
[1772999413115,12.46362435,82.506,82.482,0.46102345]
[1772999413699,0.34329371,82.505,82.482,0.46102345]
[1772999414724,12.12062445,82.504,82.482,0.46102345]
[1772999415417,12.12011592,82.508,82.484,0.48944783]
[1772999415612,0.34329371,82.507,82.484,0.48944783]
[1772999416209,12.12011592,82.508,82.484,0.48944783]
[1772999416529,12.11959617,82.511,82.484,0.48944783]
[1772999416907,0.34329371,82.511,82.486,0.48944783]
[1772999420728,0.34329371,82.509,82.486,0.48944783]
[1772999420928,0.34329371,82.508,82.477,0.48944783]
[1772999421105,0.34329371,82.508,82.462,0.48944783]
[1772999423227,0.34329371,82.505,82.464,0.48944783]
[1772999426228,42.42218558,82.504,82.466,0.48944783]
[1772999426435,0.34329371,82.503,82.466,0.48944783]
[1772999427832,0.34329371,82.503,82.465,12.12635663]
[1772999428030,0.34329371,82.503,82.466,0.48944783]
[1772999428535,0.34329371,82.501,82.468,0.48944783]
[1772999429530,0.34329371,82.499,82.47,0.48944783]
[1772999431851,12.12150597,82.498,82.472,0.48944783]
[1772999434446,12.46479968,82.498,82.472,0.48944783]
[1772999435040,0.34329371,82.497,82.472,0.48944783]
[1772999440062,0.34329371,82.495,82.472,0.48944783]
[1772999441868,0.34329371,82.493,82.472,0.48944783]
[1772999442350,0.34329371,82.493,82.471,12.1254744]
[1772999442553,0.34329371,82.493,82.462,12.12679779]
[1772999443149,0.34329371,82.493,82.462,12.5801393]
[1772999443758,0.34329371,82.491,82.463,0.45334151]
[1772999445772,0.34329371,82.489,82.463,0.45334151]
[1772999446451,0.34329371,82.488,82.46,0.2]
[1772999447747,0.34329371,82.485,82.46,1e-08]
[1772999448771,0.34329371,82.485,82.461,0.45334151]
[1772999449174,0.34329371,82.485,82.462,0.45334151]
[1772999450073,0.34329371,82.483,82.462,0.45334151]
[1772999451450,12.46715103,82.482,82.462,0.45334151]
[1772999452172,12.46715103,82.482,82.46,0.45334152]
[1772999452173,0.34329371,82.481,82.46,0.45334152]
[1772999453156,12.46744501,82.48,82.46,0.45334152]
[1772999453358,0.34329371,82.479,82.46,0.45334152]
[1772999454175,0.34329371,82.479,82.46,1e-08]
[1772999454475,0.34329371,82.478,82.46,1e-08]
[1772999454670,0.34329371,82.478,82.446,0.45334151]
[1772999454874,0.34329371,82.478,82.448,0.45334151]
[1772999455262,0.62761685,82.476,82.448,0.45334151]
[1772999455460,0.34329371,82.475,82.448,0.45334151]
[1772999455951,0.34329371,82.475,82.45,0.45334151]
[1772999456151,12.12459231,82.477,82.45,0.45334151]
[1772999456363,0.34329371,82.476,82.45,0.45334151]
[1772999458257,0.34329371,82.474,82.452,0.45334151]
[1772999460166,0.34329371,82.474,82.447,0.45334151]
[1772999460978,0.34329371,82.472,82.447,0.45334151]
[1772999461178,0.34329371,82.472,82.448,12.12885697]
[1772999461379,0.34329371,82.472,82.449,0.45334151]
[1772999462560,0.34329371,82.472,82.448,12.12885697]
[1772999462973,12.1254744,82.471,82.441,12.60859395]
[1772999463182,0.34329371,82.47,82.442,0.47870713]
[1772999463481,0.34329371,82.469,82.44,0.2]
[1772999463781,0.34329371,82.469,82.44,0.47870714]
[1772999464363,0.34329371,82.469,82.44,1e-08]
[1772999464564,0.34329371,82.458,82.43,1e-08]
[1772999465165,0.34329371,82.455,82.43,1e-08]
[1772999467284,0.34329371,82.477,82.431,0.47449466]
[1772999468759,0.34329371,82.477,82.433,0.47449466]
[1772999468760,0.34329371,82.475,82.433,0.47449466]
[1772999469364,0.28432314,82.476,82.433,0.47449466]
[1772999470393,12.12459231,82.477,82.433,0.47449466]
[1772999471064,0.34329371,82.482,82.435,0.47449466]
[1772999471994,0.34329371,82.468,82.435,0.47449466]
[1772999472168,0.34329371,82.468,82.43,1e-08]
[1772999472169,0.34329371,82.449,82.43,1e-08]
[1772999472487,0.34329371,82.448,82.43,1e-08]
[1772999473391,0.34329371,82.445,82.42,1e-08]
[1772999473766,0.28432314,82.446,82.42,1e-08]
[1772999473970,0.34329371,82.445,82.421,0.47449466]
[1772999475694,0.34329371,82.443,82.42,1e-08]
[1772999476691,12.12635663,82.465,82.421,0.47449466]
[1772999477067,0.34329371,82.464,82.421,0.47449466]
[1772999477674,12.46994445,82.463,82.423,0.47449466]
[1772999478192,0.34329371,82.462,82.423,0.47449466]
[1772999478398,0.34329371,82.459,82.423,0.47449466]
[1772999478688,0.34329371,82.458,82.423,0.47449466]
[1772999481389,12.12753313,82.457,82.425,0.47449466]
[1772999483499,12.12650368,82.464,82.427,0.47449466]
[1772999483703,0.34329371,82.463,82.427,0.47449466]
[1772999485383,0.34329371,82.459,82.427,0.47449466]
[1772999486497,0.34329371,82.458,82.422,12.13265295]
[1772999486691,0.34329371,82.458,82.42,1e-08]
[1772999487611,0.28432314,82.459,82.42,1e-08]
[1772999487612,0.34329371,82.449,82.42,1e-08]
[1772999488199,0.34329371,82.448,82.42,1e-08]
[1772999488402,0.34329371,82.439,82.42,1e-08]
[1772999488609,0.34329371,82.438,82.42,1e-08]
[1772999488821,0.34329371,82.429,82.42,1e-08]
[1772999488997,0.34329371,82.428,82.401,0.47449466]
[1772999489196,0.34329371,82.419,82.395,0.47449466]
[1772999489509,0.34329371,82.419,82.39,0.2]
[1772999489700,0.14329371,82.417,82.39,0.2]
[1772999490804,0.14329371,82.417,82.39,0.67449466]
[1772999491004,4.65889214,82.41,82.39,0.2]
[1772999491208,12.13327185,82.418,82.391,0.47449466]
[1772999492518,0.28432314,82.427,82.393,0.47449466]
[1772999494915,0.28432314,82.425,82.395,0.46103416]
[1772999496010,0.14329371,82.423,82.395,0.46103416]
[1772999496208,4.52370022,82.42,82.39,12.33738334]
[1772999496414,0.14329371,82.419,82.39,0.2]
[1772999496644,0.14329371,82.419,82.391,0.46103416]
[1772999498110,0.14329371,82.418,82.391,0.46103416]
[1772999500018,12.13312464,82.419,82.392,0.46103416]
[1772999500223,0.14329371,82.418,82.394,0.46103416]
[1772999500408,42.46336018,82.424,82.394,0.46103416]
[1772999500610,0.14329371,82.423,82.394,0.46103416]
[1772999501012,0.14329371,82.419,82.381,0.46103416]
[1772999501230,0.14329371,82.389,82.36,1e-08]
[1772999501430,0.14329371,82.389,82.34,0.2]
[1772999501431,4.52370022,82.37,82.35,1e-08]
[1772999501729,0.28432314,82.369,82.34,1e-08]
[1772999502233,0.28432314,82.367,82.34,1e-08]
[1772999502620,12.14063714,82.368,82.341,0.5]
[1772999503621,42.49222999,82.368,82.341,0.5]
[1772999503830,42.49222999,82.368,82.34,1e-08]
[1772999504032,4.52370022,82.36,82.34,1e-08]
[1772999504226,12.14196384,82.359,82.34,1e-08]
[1772999505527,42.49687344,82.359,82.34,1e-08]
[1772999505711,12.14196384,82.359,82.34,1e-08]
[1772999506613,42.49687344,82.359,82.34,1e-08]
[1772999509534,4.52370022,82.35,82.33,1e-08]
[1772999509733,0.28432314,82.339,82.3,0.2]
[1772999509936,4.52370022,82.33,82.3,0.2]
[1772999510721,12.14638827,82.329,82.3,0.2]
[1772999511436,12.14638827,82.329,82.273,60.7730091]
[1772999511437,42.51235894,82.329,82.255,0.5]
[1772999511740,0.28432314,82.349,82.268,0.5]
[1772999512819,4.52370022,82.4,82.274,0.5]
[1772999512820,12.14358575,82.348,82.274,0.5]
[1772999513328,12.14358575,82.348,82.277,0.5]
[1772999514132,30.35504774,82.359,82.275,1.21543603]
[1772999514133,4.52370022,82.35,82.283,0.5]
[1772999515219,4.52370022,82.35,82.282,0.14216157]
[1772999515220,4.52370022,82.37,82.288,0.5]
[1772999515425,4.52370022,82.37,82.289,0.5]
[1772999515826,0.14216157,82.369,82.289,0.5]
[1772999516228,4.52370022,82.35,82.289,0.5]
[1772999516432,4.52370022,82.36,82.289,0.5]
[1772999517049,0.14216157,82.369,82.289,0.5]
[1772999517230,0.14216157,82.365,82.292,0.5]
[1772999517429,0.28432314,82.365,82.293,0.5]
[1772999517744,4.52370022,82.36,82.293,0.5]
[1772999522254,12.14196384,82.359,82.295,0.64216157]
[1772999522552,12.14196384,82.359,82.296,0.5]
[1772999522848,12.14196384,82.359,82.299,0.5]
[1772999524343,42.49687344,82.359,82.299,0.5]
[1772999527848,42.77603724,82.369,82.302,0.5]
[1772999529337,4.52370022,82.36,82.302,0.5]
[1772999531749,42.77603724,82.369,82.304,0.5]
[1772999531750,4.52370022,82.35,82.304,0.5]
[1772999531937,42.49687344,82.359,82.304,0.5]
[1772999532145,42.49687344,82.359,82.305,0.5]
[1772999534663,42.49687344,82.359,82.306,12.14978251]
[1772999534853,42.49687344,82.359,82.307,0.5]
[1772999535971,4.52370022,82.34,82.307,0.5]
[1772999536169,4.52370022,82.33,82.264,12.1559856]
[1772999536469,4.52370022,82.32,82.27,0.5]
[1772999536764,42.51752328,82.319,82.274,0.5]
[1772999538845,42.51752328,82.319,82.276,0.5]
[1772999539048,4.52370022,82.3,82.244,0.5]
[1772999539244,4.52370022,82.31,82.244,0.5]
[1772999539446,42.51752328,82.319,82.248,0.5]
[1772999539963,42.51752328,82.319,82.249,0.5]
[1772999540173,4.52370022,82.31,82.249,0.5]
[1772999541251,12.14933968,82.309,82.251,0.78432314]
[1772999541450,30.36617806,82.329,82.255,0.5]
[1772999541760,30.36617806,82.329,82.258,0.5]
[1772999541963,30.36617806,82.329,82.261,0.5]
[1772999542154,30.36617806,82.329,82.262,0.5]
[1772999542976,30.36617806,82.329,82.265,0.5]
[1772999543764,42.51256633,82.329,82.265,0.5]
[1772999545053,4.52370022,82.4,82.271,0.5]
[1772999545368,0.28432314,82.359,82.273,0.5]
[1772999545568,0.28432314,82.359,82.276,0.5]
[1772999545874,3.69383402,82.37,82.28,4.82477569]
[1772999546077,4.52370022,82.36,82.284,0.5]
[1772999546258,42.49687344,82.359,82.29,0.5]
[1772999548467,42.49687344,82.359,82.292,0.28432314]
[1772999548672,42.49687344,82.359,82.293,0.5]
[1772999551587,42.49687344,82.359,82.296,0.5]
[1772999553268,0.28432314,82.358,82.296,0.5]
[1772999555561,4.53227681,82.35,82.298,0.5]
[1772999557988,42.50203402,82.349,82.3,0.5]
[1772999561086,42.50203402,82.349,82.302,0.5]
[1772999563271,42.50203402,82.349,82.303,12.15022538]
[1772999563579,42.50203402,82.349,82.304,0.5]
[1772999566798,0.46260979,82.339,82.28,42.67983778]
[1772999567501,0.46260979,82.339,82.281,0.14216157]
[1772999568004,0.46260979,82.337,82.281,0.14216157]
[1772999568702,0.46260979,82.337,82.282,0.45983168]
[1772999571185,0.46260979,82.335,82.285,0.45983168]
[1772999572307,0.46260979,82.333,82.287,0.45983168]
[1772999578308,0.46260979,82.333,82.271,104.9]
[1772999578309,0.46260979,82.331,82.289,0.45983168]
[1772999580708,12.14624073,82.33,82.291,0.45983168]
[1772999580892,0.46260979,82.329,82.291,0.45983168]
[1772999582917,0.45851671,82.327,82.293,0.47011039]
[1772999585190,0.46562157,82.333,82.295,0.46485443]
[1772999586532,1665.28788503,83.225,82.296,1.67998031]
[1772999586533,0.46562157,82.358,82.296,1.67998031]
[1772999586700,0.46562157,82.358,82.298,0.46485443]
[1772999587102,0.46562157,82.358,82.3,0.46485443]
[1772999587498,0.46562157,82.356,82.303,0.46485443]
[1772999589824,0.46562157,82.354,82.306,0.46485443]
[1772999593702,0.46562157,82.352,82.308,0.28432314]
[1772999593931,0.46562157,82.352,82.309,0.46485443]
[1772999595323,12.14314337,82.351,82.31,42.52217226]
[1772999595526,0.46562157,82.35,82.312,0.46485443]
[1772999596522,0.46562157,82.348,82.315,0.46485443]
[1772999598831,0.46562157,82.348,82.317,0.46485443]
[1772999599224,0.46562157,82.346,82.317,0.46485443]
[1772999599426,0.46562157,82.346,82.316,12.61316095]
[1772999599828,0.46562157,82.346,82.317,0.46485443]
[1772999602637,0.46562157,82.346,82.319,0.46485443]
[1772999603520,0.46562157,82.363,82.319,0.46485443]
[1772999604941,0.46562157,82.362,82.321,0.46485443]
[1772999607922,0.46562157,82.36,82.323,0.46485443]
[1772999610340,0.46562157,82.36,82.318,30.37002842]
[1772999610341,0.46562157,82.358,82.325,0.46485443]
[1772999612646,0.47136173,82.356,82.327,0.46485443]
[1772999615735,0.47136173,82.356,82.328,12.1465358]
[1772999615936,0.47136173,82.356,82.329,0.49455687]
[1772999616361,12.14255357,82.355,82.329,0.49455687]
[1772999616540,12.6139153,82.355,82.329,0.49455687]
[1772999618757,0.47136173,82.36,82.331,0.49455687]
[1772999619660,0.47136173,82.358,82.333,0.49455687]
[1772999620942,12.14034235,82.37,82.333,0.49455687]
[1772999621151,0.47136173,82.369,82.333,0.49455687]
[1772999621965,0.47136173,82.367,82.335,0.49455687]
[1772999624048,0.47136173,82.372,82.337,0.49455687]
[1772999627041,12.14019497,82.371,82.337,0.49455687]
[1772999627240,12.14019497,82.371,82.302,4.82477569]
[1772999627241,0.47136173,82.37,82.325,0.49455687]
[1772999628962,0.47136173,82.368,82.327,0.49455687]
[1772999630963,0.47136173,82.368,82.326,12.14683089]
[1772999630964,0.47136173,82.366,82.329,0.49455687]
[1772999633159,12.14078453,82.367,82.324,30.36781497]
[1772999633160,0.47136173,82.364,82.331,0.49455687]
[1772999634163,0.47136173,82.362,82.333,0.49455687]
[1772999636962,0.47136173,82.36,82.335,0.49455687]
[1772999637356,0.47136173,82.359,82.328,0.49455687]
[1772999638454,0.47136173,82.359,82.323,0.49455687]
[1772999638973,0.47136173,82.359,82.306,0.28432314]
[1772999638974,0.47136173,82.357,82.325,0.49455687]
[1772999642451,0.47136173,82.355,82.327,0.49455687]
[1772999645175,0.47136173,82.355,82.329,0.45400073]
[1772999646281,0.48886595,82.373,82.331,0.47801076]
[1772999649166,0.48886595,82.382,82.334,0.47801076]
[1772999651888,0.48886595,82.38,82.336,0.47801076]
[1772999653488,0.48886595,82.396,82.337,0.47801076]
[1772999653792,0.48886595,82.396,82.34,0.47801076]
[1772999653998,0.48886595,82.394,82.343,0.47801076]
[1772999654303,12.13665877,82.395,82.346,0.47801076]
[1772999655004,0.48886595,82.394,82.346,0.47801076]
[1772999657196,0.48886595,82.392,82.348,0.47801076]
[1772999657404,0.48886595,82.392,82.349,0.47801076]
[1772999659481,0.48886595,82.392,82.352,0.47801076]
[1772999662315,12.62611395,82.391,82.355,0.47801076]
[1772999662508,0.48886595,82.39,82.355,0.47801076]
[1772999665008,0.48886595,82.39,82.357,0.47801076]
[1772999666303,12.13746195,82.39,82.357,0.47801076]
[1772999666508,0.48886595,82.389,82.357,0.47801076]
[1772999666710,0.48886595,82.389,82.35,12.14329083]
[1772999667019,0.48886595,82.387,82.346,0.47801076]
[1772999669021,0.48886595,82.385,82.348,0.47801076]
[1772999670518,0.48886595,82.385,82.344,0.47801076]
[1772999671104,0.48886595,82.383,82.344,0.47801076]
[1772999671920,0.48886595,82.383,82.346,0.47801076]
[1772999672802,12.13857396,82.382,82.347,12.14373322]
[1772999673024,0.47402351,82.381,82.348,0.47754237]
[1772999675632,0.47402351,82.379,82.35,0.47754237]
[1772999677941,0.47402351,82.377,82.352,0.47754237]
[1772999678947,0.47402351,82.375,82.354,0.47754237]
[1772999682948,0.47402351,82.375,82.352,0.47754237]
[1772999683958,0.47402351,82.373,82.354,0.47754237]
[1772999684149,0.47402351,82.371,82.338,0.47754237]
[1772999687857,0.47402351,82.371,82.34,0.47754237]
[1772999689760,0.47402351,82.371,82.342,0.47754237]
[1772999693965,0.47402351,82.371,82.341,42.50616339]
[1772999693966,0.47402351,82.371,82.344,0.47754237]
[1772999695181,0.47402351,82.371,82.341,30.36154528]
[1772999695182,0.47402351,82.371,82.346,0.47754237]
[1772999696977,0.47402351,82.371,82.348,0.47754237]
[1772999698385,0.47402351,82.369,82.348,0.47754237]
[1772999699065,0.47402351,82.369,82.35,0.47754237]
[1772999700266,0.47402351,82.401,82.35,0.47754237]
[1772999700468,0.47402351,82.401,82.351,0.47754237]
[1772999701187,0.47402351,82.399,82.354,0.47754237]
[1772999703776,0.46688969,82.397,82.356,0.45857127]
[1772999705785,0.49822973,82.395,82.358,0.48568063]
[1772999708483,0.49822973,82.395,82.36,0.48568063]
[1772999714990,0.49822973,82.395,82.362,0.48568063]
[1772999716674,0.49822973,82.404,82.363,0.48568063]
[1772999716970,0.49822973,82.417,82.366,0.48568063]
[1772999719785,0.1,82.42,82.364,103.20042735]
[1772999719786,0.49822973,82.415,82.369,0.48568063]
[1772999721201,0.49822973,82.413,82.372,0.48568063]
[1772999723103,0.49822973,82.411,82.375,0.48568063]
[1772999727304,0.1,82.42,82.369,12.14037187]
[1772999727305,0.49822973,82.409,82.369,12.14037187]
[1772999728296,0.49822973,82.407,82.366,0.48568063]
[1772999730515,0.49822973,82.405,82.368,0.48568063]
[1772999733007,0.48172376,82.403,82.37,0.49874511]
[1772999736617,0.48172376,82.401,82.372,0.49874511]
[1772999738806,0.48172376,82.389,82.327,60.73335091]
[1772999739007,0.48172376,82.389,82.288,54.62]
[1772999739008,4.5261835,82.38,82.333,0.49874511]
[1772999739311,0.48172376,82.379,82.333,0.49874511]
[1772999741221,12.62088712,82.378,82.335,0.49874511]
[1772999741518,0.48172376,82.377,82.335,0.49874511]
[1772999741923,0.48172376,82.387,82.336,0.49874511]
[1772999742222,0.48172376,82.385,82.336,0.49874511]
[1772999745717,0.48172376,82.385,82.339,0.49874511]
[1772999748040,0.48172376,82.385,82.342,0.49874511]
[1772999749227,0.48172376,82.383,82.342,0.49874511]
[1772999750134,0.48172376,82.381,82.344,0.49874511]
[1772999750314,0.48172376,82.381,82.345,0.49874511]
[1772999753734,0.48172376,82.381,82.347,0.49874511]
[1772999758141,0.48172376,82.381,82.349,0.49874511]
[1772999758733,0.48172376,82.379,82.349,0.49874511]
[1772999760838,0.48172376,82.379,82.351,0.49874511]
[1772999761732,0.48172376,82.378,82.351,0.49874511]
[1772999762919,0.48172376,82.378,82.353,0.4891779]
[1772999764317,0.4897546,82.383,82.353,0.4891779]
[1772999764536,0.28432314,82.413,82.353,0.4891779]
[1772999764537,0.4897546,82.391,82.354,0.4891779]
[1772999764917,0.4897546,82.391,82.356,0.4891779]
[1772999767940,0.4897546,82.391,82.358,0.47318331]
[1772999769037,0.4897546,82.391,82.36,0.47318331]
[1772999770550,0.28432314,82.423,82.36,0.47318331]
[1772999770551,30.33064836,82.425,82.363,0.47843445]
[1772999770853,12.13356411,82.417,82.364,0.47843445]
[1772999771033,30.33064836,82.425,82.366,0.47843445]
[1772999771626,4.5261835,82.41,82.366,0.47843445]
[1772999772633,0.0431311,82.409,82.366,0.47843445]
[1772999773037,0.0431311,82.409,82.368,0.47843445]
[1772999775346,0.0431311,82.419,82.371,0.47843445]
[1772999775726,0.1,82.42,82.374,0.47843445]
[1772999776247,0.1,82.42,82.375,0.47843445]
[1772999776450,0.1,82.42,82.376,0.47843445]
[1772999776632,0.1,82.42,82.379,0.47843445]
[1772999776950,0.1,82.42,82.382,0.47843445]
[1772999777149,0.1,82.42,82.386,0.47843445]
[1772999777353,0.1,82.42,82.388,0.47843445]
[1772999777546,0.1,82.42,82.389,0.47843445]
[1772999778853,0.1,82.42,82.392,0.47843445]
[1772999779458,0.0431311,82.419,82.39,42.48088359]
[1772999780449,0.0431311,82.419,82.39,42.95931804]
[1772999783043,0.0431311,82.419,82.368,60.70266671]
[1772999783044,0.0431311,82.419,82.386,12.1379808]
[1772999784034,0.0431311,82.418,82.386,12.1379808]
[1772999784229,0.0431311,82.418,82.38,12.138813]
[1772999785034,0.0431311,82.418,82.381,0.47843445]
[1772999785654,0.0431311,82.418,82.382,12.13857396]
[1772999788734,0.0431311,82.418,82.383,0.47843445]
[1772999789960,0.0431311,82.418,82.385,0.47843445]
[1772999792961,0.0431311,82.418,82.387,0.47843445]
[1772999795982,0.0431311,82.418,82.389,0.47843445]
[1772999797248,0.0431311,82.418,82.387,12.13773762]
[1772999797448,0.0431311,82.418,82.387,12.61617207]
[1772999797649,0.0431311,82.418,82.388,0.47843445]
[1772999798271,0.0431311,82.418,82.389,12.13754263]
[1772999798467,0.0431311,82.418,82.388,0.47843445]
[1772999798468,0.0431311,82.418,82.384,12.13827056]
[1772999798965,0.0431311,82.418,82.385,0.47843445]
[1772999805258,0.0431311,82.418,82.387,0.47843445]
[1772999811276,0.0431311,82.418,82.389,0.47843445]